Workbook

Sheet Заполнение
A1: Статистика по выписанным/обслуженным льготным рецептам, подписанным УКЭП за периуд
A2: с 01.01.2022 по 24.01.2022.
E4: РЕЗУЛЬТАТ ДОЛЖЕН БЫТЬ ТАКОЙ
A5: 1 | B5: ТОГБУЗ "Бондарская ЦРБ" | C5: =IFERROR(INDEX(Выгрузка!$N$4:$N$97,MATCH(B5&", ",Выгрузка!$A$4:$A$97,0)),0) -> 52 | D5: =IFERROR(INDEX(Выгрузка!$O$4:$O$97,MATCH(B5&", ",Выгрузка!$A$4:$A$97,0)),0) -> 49 | E5: 52 | F5: 49 | H5: =SUMIF(Выгрузка!$A$4:$A$100,"*"&$B5&"*",Выгрузка!N$4:N$100) -> 52 | I5: =SUMIF(Выгрузка!$A$4:$A$100,"*"&$B5&"*",Выгрузка!O$4:O$100) -> 49
A6: 2 | B6: ТОГБУЗ "Жердевская ЦРБ" | C6: =IFERROR(INDEX(Выгрузка!$N$4:$N$97,MATCH(B6&", ",Выгрузка!$A$4:$A$97,0)),0) -> 150 | D6: =IFERROR(INDEX(Выгрузка!$O$4:$O$97,MATCH(B6&", ",Выгрузка!$A$4:$A$97,0)),0) -> 82 | E6: 150 | F6: 82 | H6: =SUMIF(Выгрузка!$A$4:$A$100,"*"&$B6&"*",Выгрузка!N$4:N$100) -> 150 | I6: =SUMIF(Выгрузка!$A$4:$A$100,"*"&$B6&"*",Выгрузка!O$4:O$100) -> 82
A7: 3 | B7: ТОГБУЗ "Знаменская ЦРБ" | C7: =IFERROR(INDEX(Выгрузка!$N$4:$N$97,MATCH(B7&", ",Выгрузка!$A$4:$A$97,0)),0) -> 80 | D7: =IFERROR(INDEX(Выгрузка!$O$4:$O$97,MATCH(B7&", ",Выгрузка!$A$4:$A$97,0)),0) -> 60 | E7: 80 | F7: 60 | H7: =SUMIF(Выгрузка!$A$4:$A$100,"*"&$B7&"*",Выгрузка!N$4:N$100) -> 80 | I7: =SUMIF(Выгрузка!$A$4:$A$100,"*"&$B7&"*",Выгрузка!O$4:O$100) -> 60
A8: 4 | B8: ТОГБУЗ "Инжавинская ЦРБ" | C8: =IFERROR(INDEX(Выгрузка!$N$4:$N$97,MATCH(B8&", ",Выгрузка!$A$4:$A$97,0)),0) -> 211 | D8: =IFERROR(INDEX(Выгрузка!$O$4:$O$97,MATCH(B8&", ",Выгрузка!$A$4:$A$97,0)),0) -> 140 | E8: 211 | F8: 140 | H8: =SUMIF(Выгрузка!$A$4:$A$100,"*"&$B8&"*",Выгрузка!N$4:N$100) -> 211 | I8: =SUMIF(Выгрузка!$A$4:$A$100,"*"&$B8&"*",Выгрузка!O$4:O$100) -> 140
A9: 5 | B9: ТОГБУЗ "Кирсановская ЦРБ" (г.Кирсанов) | C9: =СумЦвет(Выгрузка!$N$4:$N$100,B9) -> 0 | D9: =СумЦвет(Выгрузка!$O$4:$O$100,B9) -> 0 | E9: 771 | F9: 687 | H9: =SUMIF(Выгрузка!$A$4:$A$100,"*"&$B9&"*",Выгрузка!N$4:N$100) -> 771 | I9: =SUMIF(Выгрузка!$A$4:$A$100,"*"&$B9&"*",Выгрузка!O$4:O$100) -> 687
A10: 6 | B10: ТОГБУЗ "Кирсановская ЦРБ" (с.Гавриловка 2-я) | C10: =СумЦвет(Выгрузка!$N$4:$N$100,B10) -> 0 | D10: =СумЦвет(Выгрузка!$O$4:$O$100,B10) -> 0 | E10: 109 | F10: 83 | H10: =SUMIF(Выгрузка!$A$4:$A$100,"*"&$B10&"*",Выгрузка!N$4:N$100) -> 109 | I10: =SUMIF(Выгрузка!$A$4:$A$100,"*"&$B10&"*",Выгрузка!O$4:O$100) -> 83
A11: 7 | B11: ТОГБУЗ "ГБ им. С.С.Брюхоненко г. Мичуринска" | C11: =IFERROR(INDEX(Выгрузка!$N$4:$N$97,MATCH(B11&", ",Выгрузка!$A$4:$A$97,0)),0) -> 1228 | D11: =IFERROR(INDEX(Выгрузка!$O$4:$O$97,MATCH(B11&", ",Выгрузка!$A$4:$A$97,0)),0) -> 514 | E11: 1228 | F11: 514 | H11: =SUMIF(Выгрузка!$A$4:$A$100,"*"&$B11&"*",Выгрузка!N$4:N$100) -> 1228 | I11: =SUMIF(Выгрузка!$A$4:$A$100,"*"&$B11&"*",Выгрузка!O$4:O$100) -> 514
A12: 8 | B12: ТОГБУЗ "Мичуринская ЦРБ" | C12: =IFERROR(INDEX(Выгрузка!$N$4:$N$97,MATCH(B12&", ",Выгрузка!$A$4:$A$97,0)),0) -> 521 | D12: =IFERROR(INDEX(Выгрузка!$O$4:$O$97,MATCH(B12&", ",Выгрузка!$A$4:$A$97,0)),0) -> 85 | E12: 521 | F12: 85 | H12: =SUMIF(Выгрузка!$A$4:$A$100,"*"&$B12&"*",Выгрузка!N$4:N$100) -> 521 | I12: =SUMIF(Выгрузка!$A$4:$A$100,"*"&$B12&"*",Выгрузка!O$4:O$100) -> 85
A13: 9 | B13: ТОГБУЗ "Мордовская ЦРБ" | C13: =IFERROR(INDEX(Выгрузка!$N$4:$N$97,MATCH(B13&", ",Выгрузка!$A$4:$A$97,0)),0) -> 0 | D13: =IFERROR(INDEX(Выгрузка!$O$4:$O$97,MATCH(B13&", ",Выгрузка!$A$4:$A$97,0)),0) -> 0 | E13: 0 | F13: 0 | H13: =SUMIF(Выгрузка!$A$4:$A$100,"*"&$B13&"*",Выгрузка!N$4:N$100) -> 0 | I13: =SUMIF(Выгрузка!$A$4:$A$100,"*"&$B13&"*",Выгрузка!O$4:O$100) -> 0
A14: 10 | B14: ТОГБУЗ "Моршанская ЦРБ" | C14: =IFERROR(INDEX(Выгрузка!$N$4:$N$97,MATCH(B14&", ",Выгрузка!$A$4:$A$97,0)),0) -> 435 | D14: =IFERROR(INDEX(Выгрузка!$O$4:$O$97,MATCH(B14&", ",Выгрузка!$A$4:$A$97,0)),0) -> 258 | E14: 435 | F14: 258 | H14: =SUMIF(Выгрузка!$A$4:$A$100,"*"&$B14&"*",Выгрузка!N$4:N$100) -> 435 | I14: =SUMIF(Выгрузка!$A$4:$A$100,"*"&$B14&"*",Выгрузка!O$4:O$100) -> 258
A15: 11 | B15: ТОГБУЗ "Мучкапская ЦРБ им. ак. Кузина" | C15: =IFERROR(INDEX(Выгрузка!$N$4:$N$97,MATCH(B15&", ",Выгрузка!$A$4:$A$97,0)),0) -> 580 | D15: =IFERROR(INDEX(Выгрузка!$O$4:$O$97,MATCH(B15&", ",Выгрузка!$A$4:$A$97,0)),0) -> 482 | E15: 580 | F15: 482 | H15: =SUMIF(Выгрузка!$A$4:$A$100,"*"&$B15&"*",Выгрузка!N$4:N$100) -> 580 | I15: =SUMIF(Выгрузка!$A$4:$A$100,"*"&$B15&"*",Выгрузка!O$4:O$100) -> 482
A16: 12 | B16: ТОГБУЗ "Никифоровская ЦРБ" | C16: =IFERROR(INDEX(Выгрузка!$N$4:$N$97,MATCH(B16&", ",Выгрузка!$A$4:$A$97,0)),0) -> 54 | D16: =IFERROR(INDEX(Выгрузка!$O$4:$O$97,MATCH(B16&", ",Выгрузка!$A$4:$A$97,0)),0) -> 37 | E16: 54 | F16: 37 | H16: =SUMIF(Выгрузка!$A$4:$A$100,"*"&$B16&"*",Выгрузка!N$4:N$100) -> 54 | I16: =SUMIF(Выгрузка!$A$4:$A$100,"*"&$B16&"*",Выгрузка!O$4:O$100) -> 37
A17: 13 | B17: ТОГБУЗ "Первомайская ЦРБ" | C17: =IFERROR(INDEX(Выгрузка!$N$4:$N$97,MATCH(B17&", ",Выгрузка!$A$4:$A$97,0)),0) -> 165 | D17: =IFERROR(INDEX(Выгрузка!$O$4:$O$97,MATCH(B17&", ",Выгрузка!$A$4:$A$97,0)),0) -> 118 | E17: 165 | F17: 118 | H17: =SUMIF(Выгрузка!$A$4:$A$100,"*"&$B17&"*",Выгрузка!N$4:N$100) -> 165 | I17: =SUMIF(Выгрузка!$A$4:$A$100,"*"&$B17&"*",Выгрузка!O$4:O$100) -> 118
A18: 14 | B18: ТОГБУЗ "Петровская ЦРБ" | C18: =IFERROR(INDEX(Выгрузка!$N$4:$N$97,MATCH(B18&", ",Выгрузка!$A$4:$A$97,0)),0) -> 720 | D18: =IFERROR(INDEX(Выгрузка!$O$4:$O$97,MATCH(B18&", ",Выгрузка!$A$4:$A$97,0)),0) -> 469 | E18: 720 | F18: 469 | H18: =SUMIF(Выгрузка!$A$4:$A$100,"*"&$B18&"*",Выгрузка!N$4:N$100) -> 720 | I18: =SUMIF(Выгрузка!$A$4:$A$100,"*"&$B18&"*",Выгрузка!O$4:O$100) -> 469
A19: 15 | B19: ТОГБУЗ "Пичаевская ЦРБ" | C19: =IFERROR(INDEX(Выгрузка!$N$4:$N$97,MATCH(B19&", ",Выгрузка!$A$4:$A$97,0)),0) -> 492 | D19: =IFERROR(INDEX(Выгрузка!$O$4:$O$97,MATCH(B19&", ",Выгрузка!$A$4:$A$97,0)),0) -> 246 | E19: 492 | F19: 246 | H19: =SUMIF(Выгрузка!$A$4:$A$100,"*"&$B19&"*",Выгрузка!N$4:N$100) -> 492 | I19: =SUMIF(Выгрузка!$A$4:$A$100,"*"&$B19&"*",Выгрузка!O$4:O$100) -> 246
A20: 16 | B20: ТОГБУЗ "Рассказовская ЦРБ" | C20: =СумЦвет(Выгрузка!$N$4:$N$100,B20) -> 0 | D20: =СумЦвет(Выгрузка!$O$4:$O$100,B20) -> 0 | E20: 1259 | F20: 920 | H20: =SUMIF(Выгрузка!$A$4:$A$100,"*"&$B20&"*",Выгрузка!N$4:N$100) -> 1259 | I20: =SUMIF(Выгрузка!$A$4:$A$100,"*"&$B20&"*",Выгрузка!O$4:O$100) -> 920
A21: 17 | B21: ТОГБУЗ "Ржаксинская ЦРБ" | C21: =IFERROR(INDEX(Выгрузка!$N$4:$N$97,MATCH(B21&", ",Выгрузка!$A$4:$A$97,0)),0) -> 0 | D21: =IFERROR(INDEX(Выгрузка!$O$4:$O$97,MATCH(B21&", ",Выгрузка!$A$4:$A$97,0)),0) -> 0 | E21: 0 | F21: 0 | H21: =SUMIF(Выгрузка!$A$4:$A$100,"*"&$B21&"*",Выгрузка!N$4:N$100) -> 0 | I21: =SUMIF(Выгрузка!$A$4:$A$100,"*"&$B21&"*",Выгрузка!O$4:O$100) -> 0
A22: 18 | B22: ТОГБУЗ "Сампурская ЦРБ" | C22: =IFERROR(INDEX(Выгрузка!$N$4:$N$97,MATCH(B22&", ",Выгрузка!$A$4:$A$97,0)),0) -> 34 | D22: =IFERROR(INDEX(Выгрузка!$O$4:$O$97,MATCH(B22&", ",Выгрузка!$A$4:$A$97,0)),0) -> 27 | E22: 34 | F22: 27 | H22: =SUMIF(Выгрузка!$A$4:$A$100,"*"&$B22&"*",Выгрузка!N$4:N$100) -> 34 | I22: =SUMIF(Выгрузка!$A$4:$A$100,"*"&$B22&"*",Выгрузка!O$4:O$100) -> 27
A23: 19 | B23: ТОГБУЗ "Сосновская ЦРБ" | C23: =IFERROR(INDEX(Выгрузка!$N$4:$N$97,MATCH(B23&", ",Выгрузка!$A$4:$A$97,0)),0) -> 341 | D23: =IFERROR(INDEX(Выгрузка!$O$4:$O$97,MATCH(B23&", ",Выгрузка!$A$4:$A$97,0)),0) -> 249 | E23: 341 | F23: 249 | H23: =SUMIF(Выгрузка!$A$4:$A$100,"*"&$B23&"*",Выгрузка!N$4:N$100) -> 341 | I23: =SUMIF(Выгрузка!$A$4:$A$100,"*"&$B23&"*",Выгрузка!O$4:O$100) -> 249
A24: 20 | B24: ТОГБУЗ "Староюрьевская ЦРБ" | C24: =IFERROR(INDEX(Выгрузка!$N$4:$N$97,MATCH(B24&", ",Выгрузка!$A$4:$A$97,0)),0) -> 16 | D24: =IFERROR(INDEX(Выгрузка!$O$4:$O$97,MATCH(B24&", ",Выгрузка!$A$4:$A$97,0)),0) -> 14 | E24: 16 | F24: 14 | H24: =SUMIF(Выгрузка!$A$4:$A$100,"*"&$B24&"*",Выгрузка!N$4:N$100) -> 16 | I24: =SUMIF(Выгрузка!$A$4:$A$100,"*"&$B24&"*",Выгрузка!O$4:O$100) -> 14
A25: 21 | B25: ТОГБУЗ "Тамбовская ЦРБ" | C25: =IFERROR(INDEX(Выгрузка!$N$4:$N$97,MATCH(B25&", ",Выгрузка!$A$4:$A$97,0)),0) -> 88 | D25: =IFERROR(INDEX(Выгрузка!$O$4:$O$97,MATCH(B25&", ",Выгрузка!$A$4:$A$97,0)),0) -> 70 | E25: 88 | F25: 70 | H25: =SUMIF(Выгрузка!$A$4:$A$100,"*"&$B25&"*",Выгрузка!N$4:N$100) -> 88 | I25: =SUMIF(Выгрузка!$A$4:$A$100,"*"&$B25&"*",Выгрузка!O$4:O$100) -> 70
A26: 22 | B26: ТОГБУЗ "Токаревская ЦРБ" | C26: =IFERROR(INDEX(Выгрузка!$N$4:$N$97,MATCH(B26&", ",Выгрузка!$A$4:$A$97,0)),0) -> 43 | D26: =IFERROR(INDEX(Выгрузка!$O$4:$O$97,MATCH(B26&", ",Выгрузка!$A$4:$A$97,0)),0) -> 0 | E26: 43 | F26: 0 | H26: =SUMIF(Выгрузка!$A$4:$A$100,"*"&$B26&"*",Выгрузка!N$4:N$100) -> 43 | I26: =SUMIF(Выгрузка!$A$4:$A$100,"*"&$B26&"*",Выгрузка!O$4:O$100) -> 0
A27: 23 | B27: ТОГБУЗ "Уваровская ЦРБ" | C27: =СумЦвет(Выгрузка!$N$4:$N$100,B27) -> 0 | D27: =СумЦвет(Выгрузка!$O$4:$O$100,B27) -> 0 | E27: 594 | F27: 138 | H27: =SUMIF(Выгрузка!$A$4:$A$100,"*"&$B27&"*",Выгрузка!N$4:N$100) -> 594 | I27: =SUMIF(Выгрузка!$A$4:$A$100,"*"&$B27&"*",Выгрузка!O$4:O$100) -> 138
A28: 24 | B28: ТОГБУЗ "Уметская ЦРБ" | C28: =IFERROR(INDEX(Выгрузка!$N$4:$N$97,MATCH(B28&", ",Выгрузка!$A$4:$A$97,0)),0) -> 128 | D28: =IFERROR(INDEX(Выгрузка!$O$4:$O$97,MATCH(B28&", ",Выгрузка!$A$4:$A$97,0)),0) -> 108 | E28: 128 | F28: 108 | H28: =SUMIF(Выгрузка!$A$4:$A$100,"*"&$B28&"*",Выгрузка!N$4:N$100) -> 128 | I28: =SUMIF(Выгрузка!$A$4:$A$100,"*"&$B28&"*",Выгрузка!O$4:O$100) -> 108
A29: 25 | B29: ТОГБУЗ "ГКБ им.Арх. Луки г. Тамбова" | C29: =IFERROR(INDEX(Выгрузка!$N$4:$N$97,MATCH(B29&", ",Выгрузка!$A$4:$A$97,0)),0) -> 36 | D29: =IFERROR(INDEX(Выгрузка!$O$4:$O$97,MATCH(B29&", ",Выгрузка!$A$4:$A$97,0)),0) -> 24 | E29: 36 | F29: 24 | H29: =SUMIF(Выгрузка!$A$4:$A$100,"*"&$B29&"*",Выгрузка!N$4:N$100) -> 36 | I29: =SUMIF(Выгрузка!$A$4:$A$100,"*"&$B29&"*",Выгрузка!O$4:O$100) -> 24
A30: 26 | B30: ТОГБУЗ "ГКБ им.Арх. Луки г. Тамбова" Поликлиника №1 | C30: =IFERROR(INDEX(Выгрузка!$N$4:$N$97,MATCH(B30&", ",Выгрузка!$A$4:$A$97,0)),0) -> 0 | D30: =IFERROR(INDEX(Выгрузка!$O$4:$O$97,MATCH(B30&", ",Выгрузка!$A$4:$A$97,0)),0) -> 0 | E30: 0 | F30: 0 | H30: =SUMIF(Выгрузка!$A$4:$A$100,"*"&$B30&"*",Выгрузка!N$4:N$100) -> 0 | I30: =SUMIF(Выгрузка!$A$4:$A$100,"*"&$B30&"*",Выгрузка!O$4:O$100) -> 0
A31: 27 | B31: ТОГБУЗ "ГКБ им.Арх. Луки г. Тамбова" детская поликлиника №1 | C31: =IFERROR(INDEX(Выгрузка!$N$4:$N$97,MATCH(B31&", ",Выгрузка!$A$4:$A$97,0)),0) -> 0 | D31: =IFERROR(INDEX(Выгрузка!$O$4:$O$97,MATCH(B31&", ",Выгрузка!$A$4:$A$97,0)),0) -> 0 | E31: 0 | F31: 0 | H31: =SUMIF(Выгрузка!$A$4:$A$100,"*"&$B31&"*",Выгрузка!N$4:N$100) -> 0 | I31: =SUMIF(Выгрузка!$A$4:$A$100,"*"&$B31&"*",Выгрузка!O$4:O$100) -> 0
A32: 28 | B32: ТОГБУЗ "ГКБ №3 им. И.С. Долгушина г. Тамбова" (Никифоровская, 38) | C32: =IFERROR(INDEX(Выгрузка!$N$4:$N$97,MATCH(B32&", ",Выгрузка!$A$4:$A$97,0)),0) -> 746 | D32: =IFERROR(INDEX(Выгрузка!$O$4:$O$97,MATCH(B32&", ",Выгрузка!$A$4:$A$97,0)),0) -> 548 | E32: 746 | F32: 548 | H32: =SUMIF(Выгрузка!$A$4:$A$100,"*"&$B32&"*",Выгрузка!N$4:N$100) -> 746 | I32: =SUMIF(Выгрузка!$A$4:$A$100,"*"&$B32&"*",Выгрузка!O$4:O$100) -> 548
A33: 29 | B33: ТОГБУЗ "ГКБ №3 им. И.С. Долгушина г. Тамбова" (Советская, 194) | C33: =IFERROR(INDEX(Выгрузка!$N$4:$N$97,MATCH(B33&", ",Выгрузка!$A$4:$A$97,0)),0) -> 493 | D33: =IFERROR(INDEX(Выгрузка!$O$4:$O$97,MATCH(B33&", ",Выгрузка!$A$4:$A$97,0)),0) -> 218 | E33: 493 | F33: 218 | H33: =SUMIF(Выгрузка!$A$4:$A$100,"*"&$B33&"*",Выгрузка!N$4:N$100) -> 493 | I33: =SUMIF(Выгрузка!$A$4:$A$100,"*"&$B33&"*",Выгрузка!O$4:O$100) -> 218
A34: 30 | B34: ТОГБУЗ "ГКБ №4 г. Тамбова" | C34: =IFERROR(INDEX(Выгрузка!$N$4:$N$97,MATCH(B34&", ",Выгрузка!$A$4:$A$97,0)),0) -> 1273 | D34: =IFERROR(INDEX(Выгрузка!$O$4:$O$97,MATCH(B34&", ",Выгрузка!$A$4:$A$97,0)),0) -> 633 | E34: 1273 | F34: 633 | H34: =SUMIF(Выгрузка!$A$4:$A$100,"*"&$B34&"*",Выгрузка!N$4:N$100) -> 1273 | I34: =SUMIF(Выгрузка!$A$4:$A$100,"*"&$B34&"*",Выгрузка!O$4:O$100) -> 633
A35: 31 | B35: ТОГБУЗ "Городская поликлиника №5 г. Тамбова" | C35: =СумЦвет(Выгрузка!$N$4:$N$100,B35) -> 0 | D35: =СумЦвет(Выгрузка!$O$4:$O$100,B35) -> 0 | E35: 1316 | F35: 874 | H35: =SUMIF(Выгрузка!$A$4:$A$100,"*"&$B35&"*",Выгрузка!N$4:N$100) -> 1316 | I35: =SUMIF(Выгрузка!$A$4:$A$100,"*"&$B35&"*",Выгрузка!O$4:O$100) -> 874
A36: 32 | B36: ЧУЗ "РЖД-Медицина" Поликлиника №3 г.Тамбов" | C36: =IFERROR(INDEX(Выгрузка!$N$4:$N$97,MATCH(B36&", ",Выгрузка!$A$4:$A$97,0)),0) -> 44 | D36: =IFERROR(INDEX(Выгрузка!$O$4:$O$97,MATCH(B36&", ",Выгрузка!$A$4:$A$97,0)),0) -> 3 | E36: 44 | F36: 3 | H36: =SUMIF(Выгрузка!$A$4:$A$100,"*"&$B36&"*",Выгрузка!N$4:N$100) -> 44 | I36: =SUMIF(Выгрузка!$A$4:$A$100,"*"&$B36&"*",Выгрузка!O$4:O$100) -> 3
A37: 33 | B37: ОГБУЗ "Тамбовская офтальмологическая больница" | C37: =IFERROR(INDEX(Выгрузка!$N$4:$N$97,MATCH(B37&", ",Выгрузка!$A$4:$A$97,0)),0) -> 1 | D37: =IFERROR(INDEX(Выгрузка!$O$4:$O$97,MATCH(B37&", ",Выгрузка!$A$4:$A$97,0)),0) -> 1 | E37: 1 | F37: 1 | H37: =SUMIF(Выгрузка!$A$4:$A$100,"*"&$B37&"*",Выгрузка!N$4:N$100) -> 1 | I37: =SUMIF(Выгрузка!$A$4:$A$100,"*"&$B37&"*",Выгрузка!O$4:O$100) -> 1
A38: 34 | B38: ТОГБУЗ "Городская клиническая больница г.Котовска" | C38: =IFERROR(INDEX(Выгрузка!$N$4:$N$97,MATCH(B38&", ",Выгрузка!$A$4:$A$97,0)),0) -> 1262 | D38: =IFERROR(INDEX(Выгрузка!$O$4:$O$97,MATCH(B38&", ",Выгрузка!$A$4:$A$97,0)),0) -> 971 | E38: 1262 | F38: 971 | H38: =SUMIF(Выгрузка!$A$4:$A$100,"*"&$B38&"*",Выгрузка!N$4:N$100) -> 1262 | I38: =SUMIF(Выгрузка!$A$4:$A$100,"*"&$B38&"*",Выгрузка!O$4:O$100) -> 971
A39: 35 | B39: ТОГБУЗ "ГБ №2 г. Мичуринска" | C39: =IFERROR(INDEX(Выгрузка!$N$4:$N$97,MATCH(B39&", ",Выгрузка!$A$4:$A$97,0)),0) -> 121 | D39: =IFERROR(INDEX(Выгрузка!$O$4:$O$97,MATCH(B39&", ",Выгрузка!$A$4:$A$97,0)),0) -> 4 | E39: 121 | F39: 4 | H39: =SUMIF(Выгрузка!$A$4:$A$100,"*"&$B39&"*",Выгрузка!N$4:N$100) -> 121 | I39: =SUMIF(Выгрузка!$A$4:$A$100,"*"&$B39&"*",Выгрузка!O$4:O$100) -> 4
A40: 36 | B40: ЧУЗ "РЖД-Медицина" г.Мичуринск" | C40: =IFERROR(INDEX(Выгрузка!$N$4:$N$97,MATCH(B40&", ",Выгрузка!$A$4:$A$97,0)),0) -> 131 | D40: =IFERROR(INDEX(Выгрузка!$O$4:$O$97,MATCH(B40&", ",Выгрузка!$A$4:$A$97,0)),0) -> 8 | E40: 131 | F40: 8 | H40: =SUMIF(Выгрузка!$A$4:$A$100,"*"&$B40&"*",Выгрузка!N$4:N$100) -> 131 | I40: =SUMIF(Выгрузка!$A$4:$A$100,"*"&$B40&"*",Выгрузка!O$4:O$100) -> 8
A41: 37 | B41: ТОГБУЗ "ГДП им. В.Коваля г. Тамбова" | C41: =IFERROR(INDEX(Выгрузка!$N$4:$N$97,MATCH(B41&", ",Выгрузка!$A$4:$A$97,0)),0) -> 70 | D41: =IFERROR(INDEX(Выгрузка!$O$4:$O$97,MATCH(B41&", ",Выгрузка!$A$4:$A$97,0)),0) -> 64 | E41: 70 | F41: 64 | H41: =SUMIF(Выгрузка!$A$4:$A$100,"*"&$B41&"*",Выгрузка!N$4:N$100) -> 70 | I41: =SUMIF(Выгрузка!$A$4:$A$100,"*"&$B41&"*",Выгрузка!O$4:O$100) -> 64
A42: 38 | B42: ГБУЗ "ТОГВВ" | C42: =IFERROR(INDEX(Выгрузка!$N$4:$N$97,MATCH(B42&", ",Выгрузка!$A$4:$A$97,0)),0) -> 29 | D42: =IFERROR(INDEX(Выгрузка!$O$4:$O$97,MATCH(B42&", ",Выгрузка!$A$4:$A$97,0)),0) -> 25 | E42: 29 | F42: 25 | H42: =SUMIF(Выгрузка!$A$4:$A$100,"*"&$B42&"*",Выгрузка!N$4:N$100) -> 29 | I42: =SUMIF(Выгрузка!$A$4:$A$100,"*"&$B42&"*",Выгрузка!O$4:O$100) -> 25
A43: 39 | B43: ГБУЗ "ТОКБ им. В.Д. Бабенко" | C43: =IFERROR(INDEX(Выгрузка!$N$4:$N$97,MATCH(B43&", ",Выгрузка!$A$4:$A$97,0)),0) -> 113 | D43: =IFERROR(INDEX(Выгрузка!$O$4:$O$97,MATCH(B43&", ",Выгрузка!$A$4:$A$97,0)),0) -> 26 | E43: 113 | F43: 26 | H43: =SUMIF(Выгрузка!$A$4:$A$100,"*"&$B43&"*",Выгрузка!N$4:N$100) -> 113 | I43: =SUMIF(Выгрузка!$A$4:$A$100,"*"&$B43&"*",Выгрузка!O$4:O$100) -> 26
A44: 40 | B44: ГБУЗ "ТОДКБ" | C44: =IFERROR(INDEX(Выгрузка!$N$4:$N$97,MATCH(B44&", ",Выгрузка!$A$4:$A$97,0)),0) -> 126 | D44: =IFERROR(INDEX(Выгрузка!$O$4:$O$97,MATCH(B44&", ",Выгрузка!$A$4:$A$97,0)),0) -> 99 | E44: 126 | F44: 99 | H44: =SUMIF(Выгрузка!$A$4:$A$100,"*"&$B44&"*",Выгрузка!N$4:N$100) -> 126 | I44: =SUMIF(Выгрузка!$A$4:$A$100,"*"&$B44&"*",Выгрузка!O$4:O$100) -> 99
A45: 41 | B45: ГБУЗ "ТООКД" | C45: =IFERROR(INDEX(Выгрузка!$N$4:$N$97,MATCH(B45&", ",Выгрузка!$A$4:$A$97,0)),0) -> 60 | D45: =IFERROR(INDEX(Выгрузка!$O$4:$O$97,MATCH(B45&", ",Выгрузка!$A$4:$A$97,0)),0) -> 45 | E45: 60 | F45: 45 | H45: =SUMIF(Выгрузка!$A$4:$A$100,"*"&$B45&"*",Выгрузка!N$4:N$100) -> 60 | I45: =SUMIF(Выгрузка!$A$4:$A$100,"*"&$B45&"*",Выгрузка!O$4:O$100) -> 45
A46: 42 | B46: ОГБУЗ "Тамбовская инфекционная клиническая больница" | C46: =СумЦвет(Выгрузка!$N$4:$N$100,B46) -> 0 | D46: =СумЦвет(Выгрузка!$O$4:$O$100,B46) -> 0 | E46: 16 | F46: 14 | H46: =SUMIF(Выгрузка!$A$4:$A$100,"*"&$B46&"*",Выгрузка!N$4:N$100) -> 16 | I46: =SUMIF(Выгрузка!$A$4:$A$100,"*"&$B46&"*",Выгрузка!O$4:O$100) -> 14
A47: 43 | B47: ГУЗ "ТОКВКД" | C47: =IFERROR(INDEX(Выгрузка!$N$4:$N$97,MATCH(B47&", ",Выгрузка!$A$4:$A$97,0)),0) -> 4 | D47: =IFERROR(INDEX(Выгрузка!$O$4:$O$97,MATCH(B47&", ",Выгрузка!$A$4:$A$97,0)),0) -> 4 | E47: 4 | F47: 4 | H47: =SUMIF(Выгрузка!$A$4:$A$100,"*"&$B47&"*",Выгрузка!N$4:N$100) -> 4 | I47: =SUMIF(Выгрузка!$A$4:$A$100,"*"&$B47&"*",Выгрузка!O$4:O$100) -> 4
A48: 44 | B48: ГБУЗ "ТОКПД" | C48: =СумЦвет(Выгрузка!$N$4:$N$100,B48) -> 0 | D48: =СумЦвет(Выгрузка!$O$4:$O$100,B48) -> 0 | E48: 27 | F48: 25 | H48: =SUMIF(Выгрузка!$A$4:$A$100,"*"&$B48&"*",Выгрузка!N$4:N$100) -> 27 | I48: =SUMIF(Выгрузка!$A$4:$A$100,"*"&$B48&"*",Выгрузка!O$4:O$100) -> 25
A49: 45 | B49: ОГБУЗ "Тамбовская психиатрическая клиническая больница" | C49: =IFERROR(INDEX(Выгрузка!$N$4:$N$97,MATCH(B49&", ",Выгрузка!$A$4:$A$97,0)),0) -> 109 | D49: =IFERROR(INDEX(Выгрузка!$O$4:$O$97,MATCH(B49&", ",Выгрузка!$A$4:$A$97,0)),0) -> 88 | E49: 109 | F49: 88 | H49: =SUMIF(Выгрузка!$A$4:$A$100,"*"&$B49&"*",Выгрузка!N$4:N$100) -> 109 | I49: =SUMIF(Выгрузка!$A$4:$A$100,"*"&$B49&"*",Выгрузка!O$4:O$100) -> 88
A50: 46 | B50: ТОГБУЗ "Мичуринская психиатрическая больница" | C50: =IFERROR(INDEX(Выгрузка!$N$4:$N$97,MATCH(B50&", ",Выгрузка!$A$4:$A$97,0)),0) -> 87 | D50: =IFERROR(INDEX(Выгрузка!$O$4:$O$97,MATCH(B50&", ",Выгрузка!$A$4:$A$97,0)),0) -> 31 | E50: 87 | F50: 31 | H50: =SUMIF(Выгрузка!$A$4:$A$100,"*"&$B50&"*",Выгрузка!N$4:N$100) -> 87 | I50: =SUMIF(Выгрузка!$A$4:$A$100,"*"&$B50&"*",Выгрузка!O$4:O$100) -> 31
A51: 47 | B51: ФГУЗ "МСЧ УВД Тамбовской области" | C51: =IFERROR(INDEX(Выгрузка!$N$4:$N$97,MATCH(B51&", ",Выгрузка!$A$4:$A$97,0)),0) -> 16 | D51: =IFERROR(INDEX(Выгрузка!$O$4:$O$97,MATCH(B51&", ",Выгрузка!$A$4:$A$97,0)),0) -> 12 | E51: 16 | F51: 12 | H51: =SUMIF(Выгрузка!$A$4:$A$100,"*"&$B51&"*",Выгрузка!N$4:N$100) -> 16 | I51: =SUMIF(Выгрузка!$A$4:$A$100,"*"&$B51&"*",Выгрузка!O$4:O$100) -> 12
A52: Итого: | C52: =SUM(C5:C51) -> 10059 | D52: =SUM(D5:D51) -> 5812 | E52: =SUM(E5:E51) -> 14151 | F52: =SUM(F5:F51) -> 8553 | H52: =SUM(H5:H51) -> 14151 | I52: =SUM(I5:I51) -> 8553

Sheet Выгрузка
N3: =SUM(N4:N100) -> 14151 | O3: =SUM(O4:O100) -> 8553
A4: [1026801118563] ТОГБУЗ "Рассказовская ЦРБ", | H4: 108 | I4: 71 | J4: 2 | K4: 134 | L4: 85 | M4: 1 | N4: =B4+E4+H4+K4 -> 242 | O4: =C4+F4+I4+L4 -> 156
A5: [1026801225417] ОГБУЗ "Тамбовская инфекционная клиническая больница", | H5: 4 | I5: 4 | K5: 12 | L5: 10 | N5: =B5+E5+H5+K5 -> 16 | O5: 14
A6: [1026801226407] ТОГБУЗ "Городская поликлиника №5 г. Тамбова", | H6: 659 | I6: 472 | K6: 657 | L6: 402 | N6: 1316 | O6: 874
A7: ГБУЗ "ТОГВВ", | H7: 2 | I7: 2 | K7: 27 | L7: 23 | N7: 29 | O7: 25
A8: ГБУЗ "ТОДКБ", | B8: 33 | C8: 23 | H8: 44 | I8: 40 | K8: 49 | L8: 36 | N8: 126 | O8: 99
A9: ГБУЗ "ТОКБ им. В.Д. Бабенко", | B9: 107 | C9: 25 | H9: 5 | I9: 1 | K9: 1 | N9: 113 | O9: 26
A10: ГБУЗ "ТОКПД", | H10: 20 | I10: 20 | N10: 20 | O10: 20
A11: ГБУЗ "ТООКД", | B11: 10 | C11: 8 | H11: 28 | I11: 23 | K11: 22 | L11: 14 | N11: 60 | O11: 45
A12: ГУЗ "ТОКВКД", | K12: 4 | L12: 4 | N12: 4 | O12: 4
A13: МИЧУРИНСКИЙ ФИЛИАЛ ГБУЗ "ТОКПД", МИЧУРИНСКИЙ ФИЛИАЛ ГБУЗ "ТОКПД" | H13: 7 | I13: 5 | N13: 7 | O13: 5
A14: ОГБУЗ "Тамбовская офтальмологическая больница", | B14: 1 | C14: 1 | N14: 1 | O14: 1
A15: ОГБУЗ "Тамбовская психиатрическая клиническая больница", | H15: 40 | I15: 28 | K15: 69 | L15: 60 | N15: 109 | O15: 88
A16: ТОГБУЗ "Бондарская ЦРБ", | H16: 18 | I16: 15 | K16: 34 | L16: 34 | N16: 52 | O16: 49
A17: ТОГБУЗ "ГБ №2 г. Мичуринска", | E17: 94 | H17: 8 | I17: 1 | K17: 19 | L17: 3 | N17: 121 | O17: 4
A18: ТОГБУЗ "ГБ им. С.С.Брюхоненко г. Мичуринска", | B18: 6 | H18: 665 | I18: 201 | K18: 557 | L18: 313 | N18: 1228 | O18: 514
A19: ТОГБУЗ "ГДП им. В.Коваля г. Тамбова", | H19: 34 | I19: 33 | K19: 36 | L19: 31 | N19: 70 | O19: 64
A20: ТОГБУЗ "ГКБ №3 им. И.С. Долгушина г. Тамбова" (Никифоровская, 38), | H20: 291 | I20: 236 | K20: 455 | L20: 312 | N20: 746 | O20: 548
A21: ТОГБУЗ "ГКБ №3 им. И.С. Долгушина г. Тамбова" (Советская, 194), | H21: 333 | I21: 170 | K21: 160 | L21: 48 | N21: 493 | O21: 218
A22: ТОГБУЗ "ГКБ №4 г. Тамбова", | H22: 538 | I22: 276 | K22: 735 | L22: 357 | N22: 1273 | O22: 633
A23: ТОГБУЗ "ГКБ им.Арх. Луки г. Тамбова", | H23: 8 | I23: 6 | K23: 28 | L23: 18 | N23: 36 | O23: 24
A24: ТОГБУЗ "Городская клиническая больница г.Котовска", | B24: 2 | E24: 133 | F24: 99 | H24: 606 | I24: 479 | K24: 521 | L24: 393 | N24: 1262 | O24: 971
A25: ТОГБУЗ "Жердевская ЦРБ", | E25: 6 | F25: 4 | H25: 77 | I25: 36 | K25: 67 | L25: 42 | N25: 150 | O25: 82
A26: ТОГБУЗ "Знаменская ЦРБ", | H26: 59 | I26: 43 | K26: 21 | L26: 17 | N26: 80 | O26: 60
A27: ТОГБУЗ "Инжавинская ЦРБ", | B27: 1 | E27: 36 | F27: 16 | H27: 120 | I27: 89 | K27: 54 | L27: 35 | N27: 211 | O27: 140
A28: ТОГБУЗ "Кирсановская ЦРБ" (г.Кирсанов), | E28: 176 | F28: 132 | H28: 454 | I28: 426 | K28: 141 | L28: 129 | N28: 771 | O28: 687
A29: ТОГБУЗ "Кирсановская ЦРБ" (с.Гавриловка 2-я), | E29: 9 | F29: 8 | H29: 25 | I29: 19 | K29: 75 | L29: 56 | N29: 109 | O29: 83
A30: ТОГБУЗ "Мичуринская психиатрическая больница", | H30: 36 | I30: 11 | K30: 51 | L30: 20 | N30: 87 | O30: 31
A31: ТОГБУЗ "Мичуринская ЦРБ", | H31: 297 | I31: 57 | K31: 224 | L31: 28 | N31: 521 | O31: 85
A32: ТОГБУЗ "Моршанская ЦРБ", | E32: 168 | F32: 118 | H32: 105 | I32: 58 | K32: 162 | L32: 82 | N32: 435 | O32: 258
A33: ТОГБУЗ "Мучкапская ЦРБ им. ак. Кузина", | E33: 93 | F33: 87 | H33: 262 | I33: 228 | K33: 225 | L33: 167 | N33: 580 | O33: 482
A34: ТОГБУЗ "Никифоровская ЦРБ", | H34: 28 | I34: 19 | K34: 26 | L34: 18 | N34: 54 | O34: 37
A35: ТОГБУЗ "Первомайская ЦРБ", | H35: 110 | I35: 85 | K35: 55 | L35: 33 | N35: 165 | O35: 118
A36: ТОГБУЗ "Петровская ЦРБ", | E36: 206 | F36: 177 | H36: 275 | I36: 147 | K36: 239 | L36: 145 | N36: =B36+E36+H36+K36 -> 720 | O36: =C36+F36+I36+L36 -> 469
A37: ТОГБУЗ "Пичаевская ЦРБ", | B37: 1 | C37: 1 | H37: 245 | I37: 127 | K37: 246 | L37: 118 | N37: 492 | O37: 246
A38: ТОГБУЗ "Рассказовская ЦРБ", | B38: 2 | H38: 605 | I38: 515 | K38: 410 | L38: 249 | N38: 1017 | O38: 764
A39: ТОГБУЗ "Сампурская ЦРБ", | H39: 18 | I39: 13 | K39: 16 | L39: 14 | N39: 34 | O39: 27
A40: ТОГБУЗ "Сосновская ЦРБ", | H40: 185 | I40: 148 | K40: 156 | L40: 101 | N40: 341 | O40: 249
A41: ТОГБУЗ "Староюрьевская ЦРБ", | H41: 8 | I41: 6 | K41: 8 | L41: 8 | N41: 16 | O41: 14
A42: ТОГБУЗ "Тамбовская ЦРБ", | E42: 8 | F42: 7 | H42: 59 | I42: 55 | K42: 21 | L42: 8 | N42: 88 | O42: 70
A43: ТОГБУЗ "Токаревская ЦРБ", | H43: 9 | K43: 34 | N43: 43 | O43: 0
A44: ТОГБУЗ "Уваровская ЦРБ", | E44: 35 | F44: 3 | H44: 159 | I44: 45 | K44: 400 | L44: 90 | N44: 594 | O44: 138
A45: ТОГБУЗ "Уметская ЦРБ", | H45: 91 | I45: 76 | K45: 37 | L45: 32 | N45: 128 | O45: 108
A46: ФГУЗ "МСЧ УВД Тамбовской области", | H46: 8 | I46: 4 | K46: 8 | L46: 8 | N46: 16 | O46: 12
A47: ЧУЗ "РЖД-Медицина" г.Мичуринск", | H47: 66 | I47: 8 | K47: 65 | N47: 131 | O47: 8
A48: ЧУЗ "РЖД-Медицина" Поликлиника №3 г.Тамбов", | H48: 10 | I48: 2 | K48: 34 | L48: 1 | N48: 44 | O48: 3
N49: 0 | O49: 0
N50: 0 | O50: 0
N51: 0 | O51: 0
N52: 0 | O52: 0
N53: 0 | O53: 0
N54: 0 | O54: 0
N55: 0 | O55: 0
N56: 0 | O56: 0
N57: 0 | O57: 0
N58: 0 | O58: 0
N59: 0 | O59: 0
N60: 0 | O60: 0
N61: 0 | O61: 0
N62: 0 | O62: 0
N63: 0 | O63: 0
N64: 0 | O64: 0
N65: 0 | O65: 0
N66: 0 | O66: 0
N67: 0 | O67: 0
N68: =B68+E68+H68+K68 -> 0 | O68: =C68+F68+I68+L68 -> 0
N69: 0 | O69: 0
N70: 0 | O70: 0
N71: 0 | O71: 0
N72: 0 | O72: 0
N73: 0 | O73: 0
N74: 0 | O74: 0
N75: 0 | O75: 0
N76: 0 | O76: 0
N77: 0 | O77: 0
N78: 0 | O78: 0
N79: 0 | O79: 0
N80: 0 | O80: 0
N81: 0 | O81: 0
N82: 0 | O82: 0
N83: 0 | O83: 0
N84: 0 | O84: 0
N85: 0 | O85: 0
N86: 0 | O86: 0
N87: 0 | O87: 0
N88: 0 | O88: 0
N89: 0 | O89: 0
N90: 0 | O90: 0
N91: 0 | O91: 0
N92: 0 | O92: 0
N93: 0 | O93: 0
N94: 0 | O94: 0
N95: 0 | O95: 0
N96: 0 | O96: 0
N97: 0 | O97: 0
N98: =B98+E98+H98+K98 -> 0 | O98: =C98+F98+I98+L98 -> 0
N99: 0 | O99: 0
N100: 0 | O100: 0
